fUSD/lending_fUSD_20240501
["ID","MTS","AMOUNT","RATE_DAILY","PERIOD"]
[325163683,1714545056185,-265.839517,0.00012328,2]
[325163684,1714545056195,-931.71,0.00012328,2]
[325163685,1714545056205,-265.839517,0.00012328,2]
[325163686,1714545056215,-500.0,0.00012328,2]
[325163687,1714545056225,-500.0,0.00012328,2]
[325163688,1714545056235,-500.0,0.00012328,2]
[325163689,1714545056246,-506.99,0.00012328,2]
[325163690,1714545056256,-3371.47,0.00012328,2]
[325163691,1714545056266,-850.52,0.00012328,2]
[325163692,1714545056276,-500.0,0.00012328,2]
[325163693,1714545056286,-500.0,0.00012328,2]
[325163694,1714545056296,-151.46351,0.00012328,2]
[325163695,1714545056306,-874.44,0.00012328,2]
[325163696,1714545056316,-407.236825,0.00012328,2]
[325163697,1714545056327,-151.0,0.00012328,2]
[325163698,1714545056337,-187.672632,0.00012328,2]
[325163699,1714545056347,-831.84,0.00012328,2]
[325163700,1714545056356,-407.236825,0.00012328,2]
[325163701,1714545056368,-500.0,0.00012328,2]
[325163702,1714545056378,-151.0,0.00012328,2]
[325163703,1714545056389,-500.0,0.00012328,2]
[325163704,1714545056399,-536.35,0.00012328,2]
[325163705,1714545056410,-500.0,0.00012328,2]
[325163706,1714545056422,-607.51,0.00012328,2]
[325163707,1714545056433,-500.0,0.00012328,2]
[325163708,1714545056444,-168.24341394,0.00012328,2]
[325163709,1714545056455,-265.13631748,0.00012328,2]
[325163710,1714545056465,-500.0,0.00012328,2]
[325163711,1714545056475,-627.74,0.00012328,2]
[325163712,1714545056485,-200.414984,0.00012328,2]
[325163713,1714545056496,-2391.01,0.00012328,2]
[325163714,1714545056506,-500.0,0.00012328,2]
[325163715,1714545056516,-500.0,0.00012328,2]
[325163716,1714545056527,-500.0,0.00012328,2]
[325163717,1714545056537,-463.439166,0.00012328,2]
[325163718,1714545056547,-1225.96,0.00012328,2]
[325163719,1714545056557,-500.0,0.00012328,2]
[325163720,1714545056567,-585.65,0.00012328,2]
[325163721,1714545056577,-463.439166,0.00012328,2]
[325163722,1714545056587,-1693.03,0.00012328,2]
[325163723,1714545056598,-500.0,0.00012328,2]
[325163724,1714545056608,-500.0,0.00012328,2]
[325163725,1714545056617,-1865.17,0.00012328,2]
[325163726,1714545056628,-557.7,0.00012328,2]
[325163727,1714545056638,-803.13,0.00012328,2]
[325163728,1714545056648,-2121.14,0.00012328,2]
[325163729,1714545056659,-1352.04,0.00012328,2]
[325163730,1714545056670,-525.51,0.00012328,2]
[325163731,1714545056680,-614.48,0.00012328,2]
[325163732,1714545056690,-500.0,0.00012328,2]
[325163733,1714545056700,-500.0,0.00012328,2]
[325163734,1714545056710,-500.0,0.00012328,2]
[325163735,1714545056720,-2127.36,0.00012328,2]
[325163736,1714545056730,-1286.93,0.00012328,2]
[325163737,1714545056740,-821.32,0.00012328,2]
[325163738,1714545056750,-593.78,0.00012328,2]
[325163739,1714545056760,-500.0,0.00012328,2]
[325163740,1714545056769,-500.0,0.00012328,2]
[325163741,1714545056780,-856.37,0.00012328,2]
[325163742,1714545056790,-8199.9,0.00012328,2]
[325163743,1714545056800,-748.86,0.00012328,2]
[325163744,1714545056810,-543.52,0.00012328,2]
[325163745,1714545056820,-1889.06,0.00012328,2]
[325163746,1714545056830,-1041.02,0.00012328,2]
[325163747,1714545056840,-500.0,0.00012328,2]
[325163748,1714545056851,-688.02,0.00012328,2]
[325163749,1714545056861,-680.61,0.00012328,2]
[325163750,1714545056871,-698.9,0.00012328,2]
[325163751,1714545056881,-854.77,0.00012328,2]
[325163752,1714545056890,-500.0,0.00012328,2]
[325163753,1714545056899,-10000.0,0.00012328,2]
[325163754,1714545056909,-7768.08,0.00012328,2]
[325163755,1714545056921,-151.0,0.00012328,2]
[325163756,1714545056934,-151.0,0.00012328,2]
[325163757,1714545056943,-10000.0,0.00012328,2]
[325163758,1714545056953,-500.0,0.00012328,2]
[325163759,1714545056964,-500.0,0.00012328,2]
[325163760,1714545056974,-151.0,0.00012328,2]
[325163761,1714545056984,-3305.17,0.00012328,2]
[325163762,1714545056994,-10000.0,0.00012328,2]
[325163763,1714545057006,-159.429016,0.00012328,2]
[325163764,1714545057016,-1251.86,0.00012328,2]
[325163765,1714545057027,-151.0,0.00012328,2]
[325163766,1714545057037,-500.0,0.00012328,2]
[325163767,1714545057047,-310.65,0.00012328,2]
[325163768,1714545057057,-500.0,0.00012328,2]
[325163769,1714545057067,-500.0,0.00012328,2]
[325163770,1714545057076,-236.025786,0.00012328,2]
[325163771,1714545057086,-890.44,0.00012328,2]
[325163772,1714545057098,-1864.4,0.00012328,2]
[325163773,1714545057312,-1157.73,0.00012328,2]
[325163774,1714545057323,-531.21,0.00012328,2]
[325163775,1714545057333,-500.0,0.00012328,2]
[325163776,1714545057343,-236.025786,0.00012328,2]
[325163777,1714545057352,-500.0,0.00012328,2]
[325163778,1714545057362,-5462.45,0.00012328,2]
[325163779,1714545057373,-151.0,0.00012328,2]
[325163780,1714545057382,-500.0,0.00012328,2]
[325163781,1714545057392,-468.434218,0.00012328,2]
[325163782,1714545057401,-1162.49,0.00012328,2]
[325163783,1714545057412,-151.0,0.00012328,2]
[325163784,1714545057421,-468.434218,0.00012328,2]
[325163785,1714545057431,-500.0,0.00012328,2]
[325163786,1714545057441,-351.257035,0.00012328,2]
[325163787,1714545057450,-500.0,0.00012328,2]
[325163788,1714545057460,-351.257035,0.00012328,2]
[325163789,1714545057470,-718.2,0.00012328,2]
[325163790,1714545057479,-500.0,0.00012328,2]
[325163791,1714545057489,-627.31942633,0.00012328,2]
[325163792,1714545057498,-7793.85,0.00012328,2]
[325163793,1714545057508,-500.0,0.00012328,2]
[325163794,1714545057518,-500.0,0.00012328,2]
[325163795,1714545057528,-500.0,0.00012328,2]
[325163796,1714545057537,-151.0,0.00012328,2]
[325163797,1714545057547,-500.0,0.00012328,2]
[325163798,1714545057557,-1485.5,0.00012328,2]
[325163799,1714545057567,-500.0,0.00012328,2]
[325163800,1714545057576,-996.52,0.00012328,2]
[325163801,1714545057585,-300.47,0.00012331,2]
[325163802,1714545057595,-308.01,0.00012331,2]
[325163803,1714545057605,-1044.58,0.00012331,2]
[325163804,1714545057615,-162.92,0.00012331,2]
[325163805,1714545057626,-300.0,0.00012331,2]
[325163806,1714545057635,-701.24,0.00012331,2]
[325163807,1714545057645,-151.0,0.00012371,2]
[325163808,1714545057655,-151.0,0.00012371,2]
[325163809,1714545057664,-500.0,0.000124,4]
[325163810,1714545057674,-150.0,0.00012401,2]
[325163811,1714545057684,-150.0,0.00012446,2]
[325163812,1714545057693,-150.0,0.00012449,2]
[325163813,1714545057702,-150.0,0.00012486,2]
[325163814,1714545057712,-150.0,0.00012492,2]
[325163815,1714545057722,-500.0,0.000125,4]
[325163816,1714545057732,-150.0,0.00012501,2]
[325163817,1714545057742,-1994.82,0.00012518,2]
[325163818,1714545057751,-150.0,0.00012526,2]
[325163819,1714545057761,-150.0,0.00012562,2]
[325163820,1714545057771,-175.19768151,0.00012572,2]
[325163821,1714545057780,-1000.0,0.00012596,2]
[325163822,1714545057790,-500.0,0.00012596,2]
[325163823,1714545057799,-24715.0,0.000126,2]
[325163824,1714545057808,-20885.0,0.000126,2]
[325163825,1714545057818,-151.0,0.000126,2]
[325163826,1714545057828,-151.0,0.000126,2]
[325163827,1714545057838,-151.0,0.000126,2]
[325163828,1714545057848,-151.0,0.000126,2]
[325163829,1714545057857,-247.69924,0.000126,2]
[325163830,1714545057866,-247.69924,0.000126,2]
[325163831,1714545057877,-198.125252,0.000126,2]
[325163832,1714545057887,-198.125252,0.000126,2]
[325163833,1714545057896,-500.0,0.000126,4]
[325163834,1714545057906,-500.0,0.00012602,2]
[325163835,1714545057918,-566.43004964,0.00012602,2]
[325163836,1714545057930,-500.0,0.00012602,2]
[325163837,1714545057939,-151.0,0.00012602,2]
[325163838,1714545057949,-151.0,0.00012602,2]
[325163839,1714545057959,-151.0,0.00012602,2]
[325163840,1714545057970,-600.0,0.00012602,2]
[325163841,1714545057980,-500.0,0.00012602,2]
[325163842,1714545057990,-500.0,0.00012602,2]
[325163843,1714545058000,-500.0,0.00012602,2]
[325163844,1714545058010,-500.0,0.00012602,2]
[325163845,1714545058020,-500.0,0.00012602,2]
[325163846,1714545058029,-500.0,0.00012602,2]
[325163847,1714545058039,-524.88,0.00012602,2]
[325163848,1714545058048,-500.0,0.00012602,2]
[325163849,1714545058058,-500.0,0.00012602,2]
[325163850,1714545058067,-453.70623802,0.00012602,2]
[325163851,1714545058078,-292.01542491,0.00012602,2]
[325163852,1714545058087,-500.0,0.00012602,2]
[325163853,1714545058096,-500.0,0.00012602,2]
[325163854,1714545058106,-500.0,0.00012602,2]
[325163855,1714545058116,-500.0,0.00012602,2]
[325163856,1714545058131,-720.45,0.00012602,2]
[325163857,1714545058140,-500.0,0.00012602,2]
[325163858,1714545058150,-1025.3,0.00012602,2]
[325163859,1714545058159,-500.0,0.00012602,2]
[325163860,1714545058168,-500.0,0.00012602,2]
[325163861,1714545058178,-500.0,0.00012602,2]
[325163862,1714545058187,-746.03,0.00012602,2]
[325163863,1714545058197,-500.0,0.00012602,2]
[325163864,1714545058207,-1722.51,0.00012602,2]
[325163865,1714545058216,-642.2,0.00012602,2]
[325163866,1714545058226,-500.0,0.00012602,2]
[325163867,1714545058236,-500.0,0.00012602,2]
[325163868,1714545058246,-500.0,0.00012602,2]
[325163869,1714545058255,-726.94,0.00012602,2]
[325163870,1714545058265,-500.0,0.00012602,2]
[325163871,1714545058275,-2065.04,0.00012602,2]
[325163872,1714545058285,-2278.32,0.00012602,2]
[325163873,1714545058294,-500.0,0.00012602,2]
[325163874,1714545058304,-931.71,0.00012602,2]
[325163875,1714545058313,-500.0,0.00012602,2]
[325163876,1714545058323,-500.0,0.00012602,2]
[325163877,1714545058332,-500.0,0.00012602,2]
[325163878,1714545058342,-506.99,0.00012602,2]
[325163879,1714545058351,-3371.47,0.00012602,2]
[325163880,1714545058360,-850.52,0.00012602,2]
[325163881,1714545058375,-500.0,0.00012602,2]
[325163882,1714545058384,-500.0,0.00012602,2]
[325163883,1714545058393,-874.44,0.00012602,2]
[325163884,1714545058402,-831.84,0.00012602,2]
[325163885,1714545058412,-500.0,0.00012602,2]
[325163886,1714545058421,-500.0,0.00012602,2]
[325163887,1714545058430,-536.35,0.00012602,2]
[325163888,1714545058440,-500.0,0.00012602,2]
[325163889,1714545058450,-607.51,0.00012602,2]
[325163890,1714545058460,-500.0,0.00012602,2]
[325163891,1714545058470,-500.0,0.00012602,2]
[325163892,1714545058480,-627.74,0.00012602,2]
[325163893,1714545058489,-500.0,0.00012602,2]
[325163894,1714545058499,-2391.01,0.00012602,2]
[325163895,1714545058509,-500.0,0.00012602,2]
[325163896,1714545058519,-500.0,0.00012602,2]
[325163897,1714545058528,-1225.96,0.00012602,2]
[325163898,1714545058538,-500.0,0.00012602,2]
[325163899,1714545058548,-585.65,0.00012602,2]
[325163900,1714545058558,-1693.03,0.00012602,2]
[325163901,1714545058568,-491.10135617,0.00012602,2]
[325163902,1714545058577,-500.0,0.00012602,2]
[325163903,1714545058588,-1865.17,0.00012602,2]
[325163904,1714545058597,-557.7,0.00012602,2]
[325163905,1714545058607,-803.13,0.00012602,2]
[325163906,1714545058616,-2121.14,0.00012602,2]
[325163907,1714545058628,-1352.04,0.00012602,2]
[325163908,1714545058638,-525.51,0.00012602,2]
[325163909,1714545058647,-614.48,0.00012602,2]
[325163910,1714545058657,-500.0,0.00012602,2]
[325163911,1714545058667,-500.0,0.00012602,2]
[325163912,1714545058677,-500.0,0.00012602,2]
[325163913,1714545058686,-2127.36,0.00012602,2]
[325163914,1714545058696,-1286.93,0.00012602,2]
[325163915,1714545058705,-821.32,0.00012602,2]
[325163916,1714545058715,-593.78,0.00012602,2]
[325163917,1714545058725,-500.0,0.00012602,2]
[325163918,1714545058735,-500.0,0.00012602,2]
[325163919,1714545058744,-856.37,0.00012602,2]
[325163920,1714545058754,-8199.9,0.00012602,2]
[325163921,1714545058763,-748.86,0.00012602,2]
[325163922,1714545058772,-543.52,0.00012602,2]
[325163923,1714545058782,-1889.06,0.00012602,2]
[325163924,1714545058791,-1041.02,0.00012602,2]
[325163925,1714545058801,-500.0,0.00012602,2]
[325163926,1714545058811,-688.02,0.00012602,2]
[325163927,1714545058820,-680.61,0.00012602,2]
[325163928,1714545058830,-698.9,0.00012602,2]
[325163929,1714545058839,-854.77,0.00012602,2]
[325163930,1714545058848,-500.0,0.00012602,2]
[325163931,1714545058860,-7768.08,0.00012602,2]
[325163932,1714545058871,-500.0,0.00012602,2]
[325163933,1714545058881,-500.0,0.00012602,2]
[325163934,1714545058890,-3305.17,0.00012602,2]
[325163935,1714545058900,-1251.86,0.00012602,2]
[325163936,1714545058910,-500.0,0.00012602,2]
[325163937,1714545058923,-500.0,0.00012602,2]
[325163938,1714545058937,-500.0,0.00012602,2]
[325163939,1714545058946,-890.44,0.00012602,2]
[325163940,1714545058955,-1864.4,0.00012602,2]
[325163941,1714545058965,-1157.73,0.00012602,2]
[325163942,1714545058975,-531.21,0.00012602,2]
[325163943,1714545058985,-500.0,0.00012602,2]
[325163944,1714545058994,-500.0,0.00012602,2]
[325163945,1714545059004,-5462.45,0.00012602,2]
[325163946,1714545059016,-500.0,0.00012602,2]
[325163947,1714545059026,-1162.49,0.00012602,2]
[325163948,1714545059036,-500.0,0.00012602,2]
[325163949,1714545059046,-500.0,0.00012602,2]
[325163950,1714545059055,-718.2,0.00012602,2]
[325163951,1714545059064,-500.0,0.00012602,2]
[325163952,1714545059074,-7793.85,0.00012602,2]
[325163953,1714545059083,-500.0,0.00012602,2]
[325163954,1714545059093,-627.89548209,0.00012602,2]
[325163955,1714545059102,-500.0,0.00012602,2]
[325163956,1714545059112,-500.0,0.00012602,2]
[325163957,1714545059122,-1485.5,0.00012602,2]
[325163958,1714545059133,-500.0,0.00012602,2]
[325163959,1714545059145,-996.52,0.00012602,2]
[325163960,1714545059156,-150.0,0.00012609,2]
[325163961,1714545059166,-150.0,0.00012609,2]
[325163962,1714545059176,-150.0,0.00012612,2]
[325163963,1714545059186,-150.0,0.00012616,2]
[325163964,1714545059196,-150.0,0.00012631,2]
[325163965,1714545059206,-150.0,0.00012671,2]
[325163966,1714545059216,-150.51007187,0.00012678,2]
[325163967,1714545059225,-151.0,0.00012689,2]
[325163968,1714545059234,-44636.9927417,0.00012689,2]
[325163969,1714545059243,-3143.6222335,0.00012689,2]
[325163970,1714545059254,-187.8506063,0.00012689,2]
[325163971,1714545059264,-150.01,0.00012698,2]
[325163972,1714545059273,-4967.89524701,0.00012698,2]
[325163973,1714545059283,-151.536914,0.00012698,2]
[325163974,1714545059293,-214.74057,0.00012698,2]
[325163975,1714545059302,-214.74057,0.00012698,2]
[325163976,1714545059311,-151.0,0.00012698,2]
[325163977,1714545059320,-151.0,0.00012698,2]
[325163978,1714545059330,-151.0,0.00012698,2]
[325163979,1714545059339,-151.0,0.00012698,2]
[325163980,1714545059348,-151.0,0.00012698,2]
[325163981,1714545059358,-806273.75689793,0.00012699,2]
[325163982,1714545059368,-155.0,0.000127,2]
[325163983,1714545059378,-500.0,0.000127,4]
[325163984,1714545059387,-485.16,0.00012712,2]
[325163985,1714545059396,-5323.00545652,0.00012777,2]
[325163986,1714545059406,-566.88881678,0.00012779,2]
[325163987,1714545059416,-41923.6450146,0.00012791,2]
[325163988,1714545059426,-2942.1431868,0.00012791,2]
[325163989,1714545059435,-151.0,0.00012791,2]
[325163990,1714545059445,-151.0,0.00012791,2]
[325163991,1714545059455,-451.252231,0.00012791,2]
[325163992,1714545059464,-151.0,0.00012791,2]
[325163993,1714545059474,-451.252231,0.00012791,2]
[325163994,1714545059483,-151.0,0.00012791,2]
[325163995,1714545059493,-151.0,0.00012791,2]
[325163996,1714545059503,-265.839517,0.00012791,2]
[325163997,1714545059512,-265.839517,0.00012791,2]
[325163998,1714545059522,-215.0255088,0.00012791,2]
[325163999,1714545059531,-316.250237,0.00012795,2]
[325164000,1714545059541,-316.250237,0.00012795,2]
[325164001,1714545059550,-151.0,0.00012795,2]
[325164002,1714545059560,-151.0,0.00012795,2]
[325164003,1714545059569,-151.0,0.00012795,2]
[325164004,1714545059579,-463.439166,0.00012795,2]
[325164005,1714545059588,-463.439166,0.00012795,2]
[325164006,1714545059598,-15000.0,0.000128,2]
[325164007,1714545059607,-49049.68309662,0.000128,2]
[325164008,1714545059617,-17433.93905374,0.000128,2]
[325164009,1714545059673,-278.367412,0.000128,2]
[325164010,1714545059682,-151.0,0.000128,2]
[325164011,1714545059692,-151.0,0.000128,2]
[325164012,1714545059701,-151.0,0.000128,2]
[325164013,1714545059711,-151.0,0.000128,2]
[325164014,1714545059721,-151.0,0.000128,2]
[325164015,1714545059730,-151.0,0.000128,2]
[325164016,1714545059740,-151.0,0.000128,2]
[325164017,1714545059750,-151.0,0.000128,2]
[325164018,1714545059759,-151.0,0.000128,2]
[325164019,1714545059768,-151.0,0.000128,2]
[325164020,1714545059779,-151.0,0.000128,2]
[325164021,1714545059789,-220.949888,0.000128,2]
[325164022,1714545059799,-151.0,0.000128,2]
[325164023,1714545059808,-151.0,0.000128,2]
[325164024,1714545059818,-832.0,0.000128,4]
[325164025,1714545059827,-407.236825,0.000128,2]
[325164026,1714545059837,-151.0,0.000128,2]
[325164027,1714545059847,-407.236825,0.000128,2]
[325164028,1714545059856,-10000.0,0.000128,2]
[325164029,1714545059865,-151.0,0.000128,2]
[325164030,1714545059876,-151.0,0.000128,2]
[325164031,1714545059886,-10000.0,0.000128,2]
[325164032,1714545059896,-151.0,0.000128,2]
[325164033,1714545059906,-1825.603307,0.000128,2]
[325164034,1714545059921,-151.0,0.000128,2]
[325164035,1714545059931,-236.025786,0.000128,2]
[325164036,1714545059941,-236.025786,0.000128,2]
[325164037,1714545059952,-151.0,0.000128,2]
[325164038,1714545059962,-468.434218,0.000128,2]
[325164039,1714545059972,-151.0,0.000128,2]
[325164040,1714545059982,-468.434218,0.000128,2]
[325164041,1714545059992,-351.257035,0.000128,2]
[325164042,1714545060002,-351.257035,0.000128,2]
[325164043,1714545060013,-5323.0054565,0.00012839,2]
[325164044,1714545060023,-242.2004113,0.0001286,2]
[325164045,1714545060032,-39210.2972876,0.00012867,2]
[325164046,1714545060042,-36496.9495605,0.00012867,2]
[325164047,1714545060051,-2740.66414,0.00012867,2]
[325164048,1714545060060,-2539.1850933,0.00012867,2]
[325164049,1714545060069,-269.3753138,0.00012867,2]
[325164050,1714545060078,-151.0,0.00012868,2]
[325164051,1714545060087,-151.0,0.00012868,2]
[325164052,1714545060096,-151.0,0.00012868,2]
[325164053,1714545060105,-151.0,0.00012868,2]
[325164054,1714545060114,-247.69924,0.00012868,2]
[325164055,1714545060124,-247.69924,0.00012868,2]
[325164056,1714545060133,-198.125252,0.00012868,2]
[325164057,1714545060144,-198.125252,0.00012868,2]
[325164058,1714545060154,-296.5502164,0.00012868,2]
[325164059,1714545060163,-151.0,0.00012869,2]
[325164060,1714545060173,-33783.6018335,0.00012869,2]
[325164061,1714545060183,-2337.7060465,0.00012869,2]
[325164062,1714545060192,-214.24052737,0.00012874,2]
[325164063,1714545060201,-12051.58127009,0.00012875,2]
[325164064,1714545060210,-151.0,0.00012875,2]
[325164065,1714545060219,-151.0,0.00012875,2]
[325164066,1714545060229,-500.0,0.00012876,2]
[325164067,1714545060238,-500.0,0.00012876,2]
[325164068,1714545060248,-151.0,0.00012876,2]
[325164069,1714545060258,-151.0,0.00012876,2]
[325164070,1714545060267,-500.0,0.00012876,2]
[325164071,1714545060276,-409.88725253,0.00012876,2]
[325164072,1714545060286,-500.0,0.00012876,2]
[325164073,1714545060295,-500.0,0.00012876,2]
[325164074,1714545060304,-500.0,0.00012876,2]
[325164075,1714545060314,-500.0,0.00012876,2]
[325164076,1714545060323,-524.88,0.00012876,2]
[325164077,1714545060332,-500.0,0.00012876,2]
[325164078,1714545060342,-500.0,0.00012876,2]
[325164079,1714545060351,-500.0,0.00012876,2]
[325164080,1714545060361,-500.0,0.00012876,2]
[325164081,1714545060371,-500.0,0.00012876,2]
[325164082,1714545060381,-500.0,0.00012876,2]
[325164083,1714545060390,-720.45,0.00012876,2]
[325164084,1714545060399,-214.74057,0.00012876,2]
[325164085,1714545060408,-500.0,0.00012876,2]
[325164086,1714545060419,-214.74057,0.00012876,2]
[325164087,1714545060429,-151.0,0.00012876,2]
[325164088,1714545060439,-1025.3,0.00012876,2]
[325164089,1714545060448,-151.0,0.00012876,2]
[325164090,1714545060457,-151.0,0.00012876,2]
[325164091,1714545060466,-151.0,0.00012876,2]
[325164092,1714545060475,-208.51534,0.00012876,2]
[325164093,1714545060484,-151.0,0.00012876,2]
[325164094,1714545060493,-151.0,0.00012876,2]
[325164095,1714545060503,-222.55018576,0.00012876,2]
[325164096,1714545060512,-500.0,0.00012876,2]
[325164097,1714545060521,-500.0,0.00012876,2]
[325164098,1714545060530,-451.252231,0.00012876,2]
[325164099,1714545060540,-746.03,0.00012876,2]
[325164100,1714545060549,-151.0,0.00012876,2]
[325164101,1714545060558,-451.252231,0.00012876,2]
[325164102,1714545060567,-500.0,0.00012876,2]
[325164103,1714545060576,-1722.51,0.00012876,2]
[325164104,1714545060589,-642.2,0.00012876,2]
[325164105,1714545060599,-500.0,0.00012876,2]
[325164106,1714545060608,-500.0,0.00012876,2]
[325164107,1714545060619,-500.0,0.00012876,2]
[325164108,1714545060629,-151.0,0.00012876,2]
[325164109,1714545060638,-726.94,0.00012876,2]
[325164110,1714545060647,-500.0,0.00012876,2]
[325164111,1714545060658,-286.97504,0.00012876,2]
[325164112,1714545060667,-2065.04,0.00012876,2]
[325164113,1714545060677,-2278.32,0.00012876,2]
[325164114,1714545060687,-500.0,0.00012876,2]
[325164115,1714545060697,-265.839517,0.00012876,2]
[325164116,1714545060706,-931.71,0.00012876,2]
[325164117,1714545060716,-265.839517,0.00012876,2]
[325164118,1714545060725,-500.0,0.00012876,2]
[325164119,1714545060735,-500.0,0.00012876,2]
[325164120,1714545060745,-500.0,0.00012876,2]
[325164121,1714545060755,-506.99,0.00012876,2]
[325164122,1714545060763,-3371.47,0.00012876,2]
[325164123,1714545060774,-850.52,0.00012876,2]
[325164124,1714545060783,-500.0,0.00012876,2]
[325164125,1714545060792,-500.0,0.00012876,2]
[325164126,1714545060802,-874.44,0.00012876,2]
[325164127,1714545060811,-831.84,0.00012876,2]
[325164128,1714545060821,-500.0,0.00012876,2]
[325164129,1714545060831,-500.0,0.00012876,2]
[325164130,1714545060841,-536.35,0.00012876,2]
[325164131,1714545060850,-500.0,0.00012876,2]
[325164132,1714545060860,-607.51,0.00012876,2]
[325164133,1714545060869,-500.0,0.00012876,2]
[325164134,1714545060880,-500.0,0.00012876,2]
[325164135,1714545060889,-627.74,0.00012876,2]
[325164136,1714545060899,-500.0,0.00012876,2]
[325164137,1714545060910,-2391.01,0.00012876,2]
[325164138,1714545060922,-500.0,0.00012876,2]
[325164139,1714545060934,-500.0,0.00012876,2]
[325164140,1714545060944,-1225.96,0.00012876,2]
[325164141,1714545060953,-500.0,0.00012876,2]
[325164142,1714545060964,-585.65,0.00012876,2]
[325164143,1714545060974,-1693.03,0.00012876,2]
[325164144,1714545060983,-500.0,0.00012876,2]
[325164145,1714545060992,-1865.17,0.00012876,2]
[325164146,1714545061002,-557.7,0.00012876,2]
[325164147,1714545061012,-803.13,0.00012876,2]
[325164148,1714545061022,-1352.04,0.00012876,2]
[325164149,1714545061031,-2121.14,0.00012876,2]
[325164150,1714545061041,-525.51,0.00012876,2]
[325164151,1714545061051,-614.48,0.00012876,2]
[325164152,1714545061060,-500.0,0.00012876,2]
[325164153,1714545061070,-500.0,0.00012876,2]
[325164154,1714545061079,-500.0,0.00012876,2]
[325164155,1714545061088,-2127.36,0.00012876,2]
[325164156,1714545061098,-1286.93,0.00012876,2]
[325164157,1714545061107,-821.32,0.00012876,2]
[325164158,1714545061117,-593.78,0.00012876,2]
[325164159,1714545061127,-500.0,0.00012876,2]
[325164160,1714545061136,-500.0,0.00012876,2]
[325164161,1714545061146,-856.37,0.00012876,2]
[325164162,1714545061156,-8199.9,0.00012876,2]
[325164163,1714545061166,-748.86,0.00012876,2]
[325164164,1714545061175,-543.52,0.00012876,2]
[325164165,1714545061185,-1889.06,0.00012876,2]
[325164166,1714545061195,-1041.02,0.00012876,2]
[325164167,1714545061204,-500.0,0.00012876,2]
[325164168,1714545061214,-688.02,0.00012876,2]
[325164169,1714545061224,-680.61,0.00012876,2]
[325164170,1714545061234,-698.9,0.00012876,2]
[325164171,1714545061243,-854.77,0.00012876,2]
[325164172,1714545061253,-500.0,0.00012876,2]
[325164173,1714545061263,-7768.08,0.00012876,2]
[325164174,1714545061272,-500.0,0.00012876,2]
[325164175,1714545061282,-500.0,0.00012876,2]
[325164176,1714545061292,-3305.17,0.00012876,2]
[325164177,1714545061301,-1251.86,0.00012876,2]
[325164178,1714545061311,-500.0,0.00012876,2]
[325164179,1714545061321,-500.0,0.00012876,2]
[325164180,1714545061330,-500.0,0.00012876,2]
[325164181,1714545061340,-890.44,0.00012876,2]
[325164182,1714545061349,-1864.4,0.00012876,2]